Cogmind - Beta 13 @@@ ROGUE MODE // 2024.04.17 @ 11:21:19 Player: Inomamais Result: Self-destructed Performance ------------- Evolutions (6) 3000 Regions Visited (14) 2800 Robots Destroyed (105) 525 Value Destroyed (2361) 2361 Prototype IDs (29) 580 Alien Tech Used (0) 0 Bonus (600) 600 TOTAL SCORE: 9866 Bonus ------- Aligned with FarCom 300 Met Data Miner 300 Cogmind --------- Core Integrity 1150/1150 Matter 290/300 Energy 450/450 System Corruption 0% Temperature Cool (0) Movement Flying (27) Location -4/Factory Parts ------- > --- POWER (2) -------- Cold Fusion Reactor Enhanced Fission Core > --- PROPULSION (7) --- Cooled Cesium-ion Thruster Cooled Cesium-ion Thruster Field Propulsion Drive Nuclear Pulse Array Nuclear Pulse Array > --- UTILITY (8) ------ Advanced Transmission Jammer Hacking Suite Hacking Suite Experimental Hacking Suite System Shield System Shield System Shield Advanced System Shield > --- WEAPON (2) ------- Variable Charge Gun Powered Hammer > --- INVENTORY (5) ---- Enhanced Fission Core Cooled VTOL Module Cooled VTOL Module Drone Bay (2/2) Long-range Missile Launcher Peak State ------------ > --- POWER ------------ Cold Fusion Reactor Enhanced Fission Core > --- PROPULSION ------- Cooled Cesium-ion Thruster Cooled Cesium-ion Thruster Field Propulsion Drive Nuclear Pulse Array Nuclear Pulse Array > --- UTILITY ---------- Advanced Transmission Jammer Hacking Suite Hacking Suite Experimental Hacking Suite System Shield System Shield System Shield Advanced System Shield > --- WEAPON ----------- Variable Charge Gun Powered Hammer > --- INVENTORY -------- Enhanced Fission Core Cooled VTOL Module Cooled VTOL Module Drone Bay Long-range Missile Launcher [Rating: 103] Favorites ----------- Power Cold Fusion Reactor Engine Light Ion Engine Power Core Enhanced Fission Core Reactor Cold Fusion Reactor Propulsion Cooled Cesium-ion Thruster Treads Light Treads Wheel Compact Wheel Flight Unit Cooled Cesium-ion Thruster Utility Hacking Suite Device Advanced Transmission Jammer Storage Large Storage Unit Processor Enhanced Optical Array Hackware Hacking Suite Protection Light Armor Plating Weapon Powered Hammer Energy Gun Variable Charge Gun Ballistic Gun Light Assault Rifle Ballistic Cannon Assault Cannon Launcher Mini Grenade Launcher Impact Weapon Powered Hammer Slashing Weapon Katana Build | -11 -10 -9 -9 -9 -8 -8 -7 -6 -6 -6 -6 -5 -5 -4 ------- Run | Yrd Mat Mat Min Exi Min Mat Fac Fac Low Low Dat Pro Fac Fac Slots Evolved 12 | . . 2 . . . 2 2 2 . . . . 2 2 Power 1 | . . . . . . . . 1 . . . . . . Propulsion 5 | . . 1 . . . 1 . 1 . . . . 1 1 Utility 6 | . . 1 . . . 1 2 . . . . . 1 1 Weapon . | . . . . . . . . . . . . . . . Parts Attached 135 | 6 13 16 24 . . 8 14 17 6 3 1 4 19 4 Power 17 | 1 1 3 4 . . 2 1 2 . . . . 3 . Engine 12 | 1 1 3 4 . . 2 . 1 . . . . . . Core 4 | . . . . . . . 1 . . . . . 3 . Reactor 1 | . . . . . . . . 1 . . . . . . Propulsion 42 | 2 4 8 10 . . 1 4 8 . . . . 4 1 Treads 22 | 1 2 8 10 . . 1 . . . . . . . . Leg . | . . . . . . . . . . . . . . . Wheel 3 | 1 2 . . . . . . . . . . . . . Hover . | . . . . . . . . . . . . . . . Flight 17 | . . . . . . . 4 8 . . . . 4 1 Utility 39 | 1 2 3 2 . . 2 7 4 4 . . . 11 3 Device 15 | . . . . . . 1 2 2 3 . . . 6 1 Storage 2 | 1 . 1 . . . . . . . . . . . . Processor 4 | . . 1 . . . 1 . 2 . . . . . . Hackware 13 | . . . . . . . 5 . 1 . . . 5 2 Protection 5 | . 2 1 2 . . . . . . . . . . . Artifact . | . . . . . . . . . . . . . . . Weapon 37 | 2 6 2 8 . . 3 2 3 2 3 1 4 1 . Energy Gun 2 | 1 . . . . . . . . . . . . 1 . Energy Cannon . | . . . . . . . . . . . . . . . Ballistic Gun 8 | 1 3 1 3 . . . . . . . . . . . Ballistic Cannon 4 | . 2 . . . . 2 . . . . . . . . Launcher 9 | . . . 2 . . . . 2 1 2 . 2 . . Special Weapon . | . . . . . . . . . . . . . . . Impact Weapon 9 | . 1 . 1 . . . 1 1 1 1 1 2 . . Slashing Weapon 5 | . . 1 2 . . 1 1 . . . . . . . Piercing Weapon . | . . . . . . . . . . . . . . . Special Melee Weapon . | . . . . . . . . . . . . . . . Unidentified Prototypes . | . . . . . . . . . . . . . . . Parts Lost 17 | . . 3 6 . . 1 . 2 1 . . . 4 . Power 2 | . . . 1 . . . . 1 . . . . . . Propulsion 6 | . . 1 4 . . . . 1 . . . . . . Utility 8 | . . 2 . . . 1 . . 1 . . . 4 . Weapon 1 | . . . 1 . . . . . . . . . . . Highest Loss Streak 5 | . . 2 5 . . 1 . 2 1 . . . 4 . To Critical Strikes . | . . . . . . . . . . . . . . . Average Slot Usage (%) 92 | . 98 88 98 100 100 91 98 96 89 86 86 86 87 87 Engine 5 | . 14 10 10 11 11 9 3 5 . . . . . . Core 1 | . . . . . . . 3 . . . . . 4 5 Reactor 2 | . . . . . . . . 5 6 6 6 6 5 5 Treads 10 | . 14 29 32 33 33 33 . . . . . . . . Wheel 1 | . 13 1 . . . . . . . . . . . . Flight 18 | . . . . . . . 29 33 33 33 33 33 26 25 Device 5 | . . . . . . 4 13 3 8 13 13 13 11 4 Storage 4 | . 14 11 11 11 11 9 . . . . . . . . Processor 6 | . . 8 11 11 11 8 7 8 6 6 6 6 4 . Hackware 16 | . . . . . . . 24 26 23 20 20 20 22 35 Protection 3 | . 13 4 9 11 11 7 . . . . . . . . Energy Gun 1 | . 2 . . . . . . . . . . . 2 5 Ballistic Gun 3 | . 15 13 9 . . . . . . . . . . . Ballistic Cannon 1 | . 6 . . . . 9 . . . . . . . . Impact Weapon 4 | . 3 . 1 11 11 4 6 6 4 5 6 5 5 5 Slashing Weapon 3 | . . 8 10 11 11 4 6 . . . . . . . Naked Turns . | . . . . . . . . . . . . . . . Heaviest Build 41 | 12 15 33 35 32 32 41 41 22 27 27 22 27 35 34 Greatest Support 80 | 20 16 60 60 60 60 80 80 30 28 28 28 28 38 45 Greatest Overweight (x) 1 | . 1 1 . . . . . . . . . . . . Average Overweight (x) . | . . . . . . . . . . . . . . . Largest Inventory Capacity 15 | 8 8 15 15 15 15 15 15 5 5 5 5 5 5 5 Average Capacity 7 | 6 8 11 15 15 15 15 5 5 5 5 5 5 5 5 Most Carried 15 | 6 8 15 15 15 15 15 15 5 5 5 5 5 5 5 Average Carried 7 | 3 7 10 14 15 15 14 5 4 4 4 5 5 4 4 Final Capacity 15 | 8 8 15 15 15 15 15 5 5 5 5 5 5 5 5 Final Carried 15 | 6 8 15 15 15 15 15 5 5 4 5 5 5 5 5 Class Distribution -------------------- 35% | Hacker-Sprinter 15% | Wizard-Sprinter 13% | Mutant 12% | Scavenger-Mutant 10% | Hacker-Scout 8% | Scavenger-Gladiator Dominant Class ---------------- Mutant | -10/Materials Mutant | -9/Materials Scavenger-Mutant | -9/Mines Scavenger-Gladiator | -9/Exiles Scavenger-Gladiator | -8/Mines Scavenger-Gladiator | -8/Materials Hacker-Scout | -7/Factory Hacker-Sprinter | -6/Factory Hacker-Sprinter | -6/Lower Caves Hacker-Sprinter | -6/Lower Caves Hacker-Sprinter | -6/Data Miner Hacker-Sprinter | -5/Proximity Caves Hacker-Sprinter | -5/Factory Wizard-Sprinter | -4/Factory Resources | -11 -10 -9 -9 -9 -8 -8 -7 -6 -6 -6 -6 -5 -5 -4 ----------- Run | Yrd Mat Mat Min Exi Min Mat Fac Fac Low Low Dat Pro Fac Fac Matter Collected 1959 | 197 293 195 260 . . 10 317 166 145 65 . 106 123 82 Remotely . | . . . . . . . . . . . . . . . Salvage Created 3199 | . 473 563 809 . 56 116 351 424 97 41 . 56 130 83 Parts 187 | . 30 38 65 . 2 5 13 18 7 4 . 4 1 . Haulers Intercepted 3 | . 1 . . . . . . 1 . . . . 1 . Recyclers Shooed . | . . . . . . . . . . . . . . . Parts Field Recycled . | . . . . . . . . . . . . . . . Retrieved Matter . | . . . . . . . . . . . . . . . Parts Self-Destructed 12 | . . . . . . . . . 4 4 . 4 . . Prevented . | . . . . . . . . . . . . . . . Kills | -11 -10 -9 -9 -9 -8 -8 -7 -6 -6 -6 -6 -5 -5 -4 ------- Run | Yrd Mat Mat Min Exi Min Mat Fac Fac Low Low Dat Pro Fac Fac Combat Hostiles Destroyed 62 | . 9 11 22 . 1 3 . 5 5 1 . 5 . . Melee 33 | . . 9 19 . 1 2 . 2 . . . . . . Guns 8 | . 6 2 . . . . . . . . . . . . Cannons 4 | . 3 . . . . 1 . . . . . . . . AOE 16 | . . . 3 . . . . 2 5 1 . 5 . . Classes Destroyed 14 | . 3 2 6 . . . 1 1 . 1 . . . . Worker 6 | . . . 1 . . . 5 . . . . . . . Builder 16 | . . . 1 . . . 1 11 . . . . 1 2 Tunneler 4 | . . . 1 . . . 1 . . . . . . 2 Hauler 3 | . 1 . . . . . . 1 . . . . 1 . Recycler 4 | . . . 2 . . . 2 . . . . . . . Operator 7 | . 3 3 . . . . 1 . . . . . . . Watcher 3 | . . . . . . . 2 1 . . . . . . Swarmer 24 | . . . 12 . . . . 3 4 . . 5 . . Cutter 2 | . . . . . . . . 2 . . . . . . Grunt 26 | . 9 6 6 . 1 3 . . 1 . . . . . Brawler 2 | . . . 2 . . . . . . . . . . . Duelist 1 | . . 1 . . . . . . . . . . . . Sentry 6 | . . 4 2 . . . . . . . . . . . Hunter 1 | . . . . . . . . . . 1 . . . . Best Kill Streak 5 | . 4 3 5 . 1 2 5 3 4 1 . 5 1 2 Combat Bots Only 5 | . 2 3 5 . 1 2 . 3 4 1 . 5 . . Max Kills in Single Turn 4 | . 1 1 2 . 1 1 1 2 4 1 . 4 1 1 Gunslinging . | . . . . . . . . . . . . . . . Exploded 4 | . . . 2 . . . . 2 4 1 . 4 . . Melee 1 | . . 1 1 . 1 1 . 1 . . . . . . Uniques/NPCs Destroyed . | . . . . . . . . . . . . . . . Combat | -11 -10 -9 -9 -9 -8 -8 -7 -6 -6 -6 -6 -5 -5 -4 -------- Run | Yrd Mat Mat Min Exi Min Mat Fac Fac Low Low Dat Pro Fac Fac Hostile Shots Fired 321 | . 31 78 110 . 18 14 18 36 6 3 . 2 . 5 Missed 90 | . 9 17 18 . 5 7 10 15 3 1 . 1 . 4 Damage Taken 3505 | . 334 912 1121 . 213 104 58 371 55 35 . 27 249 26 Core 553 | . 55 203 123 . 71 . 17 77 . . . 7 . . Absorbed by Shields 81 | . . . . . . . 10 71 . . . . . . Redirected to Shielding 71 | . 43 28 . . . . . . . . . . . . Regen/Repaired (Parts) 23 | . . . . . . . . . . . . . 23 . Core Remaining (%) 80 | 100 78 . . . . 100 97 . . . . 90 100 . Volleys Fired 146 | . 38 17 5 . . 11 . 2 5 2 . 3 49 14 Largest 2 | . 2 2 1 . . 2 . 1 1 1 . 1 1 1 Hottest 225 | . 70 40 30 . . 88 . 30 43 43 . 43 225 225 Shots Fired 209 | . 76 30 5 . . 22 . 2 6 2 . 3 49 14 Gun 161 | . 68 30 . . . . . . . . . . 49 14 Cannon 30 | . 8 . . . . 22 . . . . . . . . Launcher 18 | . . . 5 . . . . 2 6 2 . 3 . . Special . | . . . . . . . . . . . . . . . Kinetic 118 | . 66 30 . . . 22 . . . . . . . . Thermal 73 | . 10 . . . . . . . . . . . 49 14 Explosive 18 | . . . 5 . . . . 2 6 2 . 3 . . Electromagnetic . | . . . . . . . . . . . . . . . Robot Hit Streak 14 | . 11 14 1 . . 5 . . 2 4 . . 3 . Robot Miss Streak 4 | . 4 3 1 . . 2 . . 1 . . 1 3 . Penetration Max . | . . . . . . . . . . . . . . . Secondary Targets . | . . . . . . . . . . . . . . . Shots Hit Robots 217 | . 53 41 44 . 9 12 20 23 2 2 . . 6 5 Core Hits 106 | . 26 15 21 . 2 4 5 8 15 3 . 6 . 1 Critical Kills . | . . . . . . . . . . . . . . . Critical Parts Destroyed 5 | . . . . . . . 1 3 . . . . . 1 Critical Strikes 11 | . 1 . 4 . . . 2 3 . . . . . 1 Burn 1 | . 1 . . . . . . . . . . . . . Smash 5 | . . . . . . . 1 3 . . . . . 1 Sever 5 | . . . 4 . . . 1 . . . . . . . Melee Attacks 385 | . 7 28 60 . 12 5 78 89 . 1 . 12 52 41 Impact 264 | . 7 1 . . 4 1 59 86 . 1 . 12 52 41 Slashing 121 | . . 27 60 . 8 4 19 3 . . . . . . Piercing . | . . . . . . . . . . . . . . . Sneak Attacks 40 | . . 4 5 . . 1 11 13 . . . . 2 4 Combat Hostiles 1 | . . . . . . 1 . . . . . . . . Follow-up Attacks 9 | . . . . . 4 . 3 2 . . . . . . Damage Inflicted 8127 | . 545 989 1817 . 271 299 937 1536 674 99 . 318 224 418 Guns 682 | . 456 167 . . . . . . . . . . 59 . Cannons 260 | . 89 . . . . 171 . . . . . . . . Explosions 1474 | . . . 328 . . . . 55 674 99 . 318 . . Melee 5711 | . . 822 1489 . 271 128 937 1481 . . . . 165 418 Ramming . | . . . . . . . . . . . . . . . Kinetic 795 | . 457 167 . . . 171 . . . . . . . . Thermal 147 | . 88 . . . . . . . . . . . 59 . Explosive 1474 | . . . 328 . . . . 55 674 99 . 318 . . Electromagnetic . | . . . . . . . . . . . . . . . Impact 2752 | . . . . . 76 . 639 1454 . . . . 165 418 Slashing 2959 | . . 822 1489 . 195 128 298 27 . . . . . . Piercing . | . . . . . . . . . . . . . . . Highest Corruption 11 | . 1 . . . . . 1 1 1 1 1 1 11 . Average Corruption 1 | . 1 . . . . . 1 1 1 1 1 1 11 . Corruption Purged . | . . . . . . . . . . . . . . . Corruption Blocked . | . . . . . . . . . . . . . . . Effects 15 | . 1 . . . . . 2 . 5 . . 5 2 . Message Errors 4 | . . . . . . . 1 . 1 . . 1 1 . Matter Fused 3 | . . . . . . . 1 . 1 . . 1 . . Heat Flow Errors 3 | . 1 . . . . . . . 1 . . 1 . . Energy Discharges 3 | . . . . . . . . . . . . 2 1 . Data Loss (minor) 1 | . . . . . . . . . 1 . . . . . Misfires 1 | . . . . . . . . . 1 . . . . . Overload Shots 7 | . . . . . . . . . . . . . 1 6 Overflow Damage 1769 | . . 217 124 . 10 23 253 782 . . . . 65 295 Projectiles 9 | . . . . . . 9 . . . . . . . . Explosions 20 | . . . 20 . . . . . . . . . . . Melee 1740 | . . 217 104 . 10 14 253 782 . . . . 65 295 Knockbacks 20 | . 1 . . . . 4 5 7 . . . . . 3 Impact 14 | . . . . . . . 4 7 . . . . . 3 Kinetic 5 | . 1 . . . . 4 . . . . . . . . Secondary 1 | . . . . . . . 1 . . . . . . . Self-Inflicted Damage 82 | . . . 67 . . . . . . . . 15 . . Shots 3 | . . . 2 . . . . . . . . 1 . . Rammed . | . . . . . . . . . . . . . . . Targets Rammed . | . . . . . . . . . . . . . . . Kicked . | . . . . . . . . . . . . . . . Crushed . | . . . . . . . . . . . . . . . Highest Temperature 230 | . 135 8 . . 1 84 5 40 107 . . 222 178 230 Average Temperature 54 | . 43 3 . . 1 28 3 13 58 . . 125 74 82 Received Heat Transfer 920 | . 153 333 213 . 117 63 20 . 21 . . . . . Siege Activations . | . . . . . . . . . . . . . . . Robots Corrupted . | . . . . . . . . . . . . . . . Combat Hostiles . | . . . . . . . . . . . . . . . Parts Fried 38 | . . . . . . . 11 19 . . . . 4 4 Impact Corruptions 54 | . . . . . 1 . 11 28 . . . . 3 11 Robots Melted . | . . . . . . . . . . . . . . . Combat Hostiles . | . . . . . . . . . . . . . . . Parts Melted 1 | . 1 . . . . . . . . . . . . . Heat Transferred 444 | . 333 . . . . . . . . . . . 111 . Parts Sabotaged . | . . . . . . . . . . . . . . . Parts Stolen . | . . . . . . . . . . . . . . . Parts Stripped . | . . . . . . . . . . . . . . . Power Chain Reactions . | . . . . . . . . . . . . . . . Alert | -11 -10 -9 -9 -9 -8 -8 -7 -6 -6 -6 -6 -5 -5 -4 ------- Run | Yrd Mat Mat Min Exi Min Mat Fac Fac Low Low Dat Pro Fac Fac Peak Influence 271 | . 192 191 271 . 50 100 92 166 . . . . 119 77 Initial 39 | . . 6 9 . . 19 39 4 . . . . . 7 Average 52 | . 56 87 130 . 43 59 30 45 . . . . 21 21 Maximum Alert Level 1 | . . . 1 . . . . . . . . . . . Low Security (%) 98 | 100 100 100 87 . 100 100 100 100 . . . . 100 100 Level 1 1 | . . . 12 . . . . . . . . . . . Level 2 . | . . . . . . . . . . . . . . . Level 3 . | . . . . . . . . . . . . . . . Level 4 . | . . . . . . . . . . . . . . . Level 5 . | . . . . . . . . . . . . . . . High Security . | . . . . . . . . . . . . . . . Max Security . | . . . . . . . . . . . . . . . Squads Dispatched 23 | . 3 3 . . . 1 4 6 . . . . 2 4 Investigation 4 | . . . . . . . 2 . . . . . . 2 Extermination 4 | . . . . . . . 1 2 . . . . . 1 Reinforcement 15 | . 3 3 . . . 1 1 4 . . . . 2 1 Assault . | . . . . . . . . . . . . . . . Garrison . | . . . . . . . . . . . . . . . Intercept . | . . . . . . . . . . . . . . . Searches Triggered . | . . . . . . . . . . . . . . . Construction Impeded 1 | . . . . . . . . 1 . . . . . . Haulers Reinforced 1 | . . . . . . . . . . . . . 1 . Active Scanning Responses . | . . . . . . . . . . . . . . . Cargo Convoy Interrupts . | . . . . . . . . . . . . . . . Stealth | -11 -10 -9 -9 -9 -8 -8 -7 -6 -6 -6 -6 -5 -5 -4 --------- Run | Yrd Mat Mat Min Exi Min Mat Fac Fac Low Low Dat Pro Fac Fac Distress Signals 15 | . 3 5 . . . 2 3 1 . . . . 1 . Communications Jammed 3 | . . . . . . . . . . . . . 1 2 Distress Signals 3 | . . . . . . . . . . . . . 1 2 Times Spotted 141 | . 28 18 25 . 5 12 9 14 10 1 . 1 8 10 Peak Tracking Total 5 | . 5 5 4 . 3 3 5 4 4 1 . 1 2 2 Tactical Retreats 20 | . 3 1 4 . 1 1 3 3 1 . . . . 3 Traps | -11 -10 -9 -9 -9 -8 -8 -7 -6 -6 -6 -6 -5 -5 -4 ------- Run | Yrd Mat Mat Min Exi Min Mat Fac Fac Low Low Dat Pro Fac Fac Traps Triggered 7 | . 3 1 . . . . 2 1 . . . . . . Indirectly . | . . . . . . . . . . . . . . . Trap Hack Attempts . | . . . . . . . . . . . . . . . Triggered . | . . . . . . . . . . . . . . . Disarmed . | . . . . . . . . . . . . . . . Reprogrammed . | . . . . . . . . . . . . . . . Reused . | . . . . . . . . . . . . . . . Traps Extracted . | . . . . . . . . . . . . . . . Installed . | . . . . . . . . . . . . . . . Triggered . | . . . . . . . . . . . . . . . Machines | -11 -10 -9 -9 -9 -8 -8 -7 -6 -6 -6 -6 -5 -5 -4 ---------- Run | Yrd Mat Mat Min Exi Min Mat Fac Fac Low Low Dat Pro Fac Fac Machines Disabled 6 | . 1 . 1 . . 1 . 1 . . . . 1 1 Max in Single Turn 1 | . 1 . 1 . . 1 . 1 . . . . 1 1 Garrison Access 10 | . . . . . . . 1 3 . . . . 3 3 Machines Repaired . | . . . . . . . . . . . . . . . Machines Dismantled . | . . . . . . . . . . . . . . . Machines Sabotaged . | . . . . . . . . . . . . . . . Overloaded Fab Kills . | . . . . . . . . . . . . . . . Hacking | -11 -10 -9 -9 -9 -8 -8 -7 -6 -6 -6 -6 -5 -5 -4 --------- Run | Yrd Mat Mat Min Exi Min Mat Fac Fac Low Low Dat Pro Fac Fac Machines Accessed 88 | . 5 2 . 3 . 4 11 20 1 . 4 1 20 17 Terminals 54 | . 5 2 . . . 3 7 13 1 . . 1 12 10 Fabricators 11 | . . . . . . . 2 2 . . . . 3 4 Repair Stations 1 | . . . . . . . . . . . . . 1 . Recycling Units . | . . . . . . . . . . . . . . . Scanalyzers 3 | . . . . . . . . 2 . . . . 1 . Garrison Access 12 | . . . . . . 1 2 3 . . . . 3 3 Total Hacks 298 | . 16 6 . 25 . 10 26 57 1 . 28 1 48 80 Successful 184 | . 6 2 . 25 . 3 14 34 1 . 28 1 24 46 Failed 114 | . 10 4 . . . 7 12 23 . . . . 24 34 Catastrophic 22 | . 2 . . . . 1 1 4 . . . . 4 10 Database Lockouts . | . . . . . . . . . . . . . . . Manual 98 | . 5 3 . 1 . 2 11 19 . . . . 17 40 Terminals 199 | . 16 6 . . . 8 20 47 1 . . 1 33 67 Fabricators 18 | . . . . . . . 2 3 . . . . 4 9 Repair Stations 2 | . . . . . . . . . . . . . 2 . Recycling Units . | . . . . . . . . . . . . . . . Scanalyzers 4 | . . . . . . . . 2 . . . . 2 . Garrison Access 22 | . . . . . . 2 4 5 . . . . 7 4 Terminal Hacks 138 | . 6 2 . 25 . 3 9 22 1 . 28 1 10 31 Record 39 | . . . . 25 . . . . 1 . 11 1 . 1 Part Schematic 16 | . 1 . . . . . 1 1 . . 9 . 1 3 Robot Schematic 5 | . . . . . . . . . . . 5 . . . Robot Analysis 3 | . . . . . . . . 3 . . . . . . Prototype ID Bank 11 | . 1 . . . . . . 2 . . 3 . 2 3 Open DSF 1 | . . . . . . . . . . . . . . 1 Level Access Points 3 | . . . . . . . . 1 . . . . 1 1 Branch Access Points 6 | . 1 . . . . 1 1 1 . . . . 1 1 Emergency Access Points 1 | . 1 . . . . . . . . . . . . . Machine Index 1 | . . . . . . . . . . . . . . 1 Terminal Index 4 | . . . . . . . 1 1 . . . . 1 1 Fabricator Index 1 | . . . . . . . . . . . . . . 1 Alert Level 1 | . . . . . . 1 . . . . . . . . Unreport Threat 14 | . 1 1 . . . . 3 3 . . . . 3 3 Locate Traps 10 | . . . . . . 1 1 4 . . . . . 4 Dispatch Records 5 | . . 1 . . . . . . . . . . 1 3 Transport Status 1 | . . . . . . . . . . . . . . 1 Recall Investigation 2 | . . . . . . . . . . . . . . 2 Recall Extermination 4 | . . . . . . . 1 2 . . . . . 1 Recall Reinforcements 4 | . 1 . . . . . 1 1 . . . . . 1 Hauler Manifests 1 | . . . . . . . . . . . . . . 1 Zone Layout 5 | . . . . . . . . 3 . . . . . 2 Fabricator Hacks 14 | . . . . . . . 2 2 . . . . 3 7 Network Status 9 | . . . . . . . 2 1 . . . . 3 3 Load Schematic 2 | . . . . . . . . . . . . . . 2 Build 3 | . . . . . . . . 1 . . . . . 2 Repair Station Hacks 2 | . . . . . . . . . . . . . 2 . Scan Component 1 | . . . . . . . . . . . . . 1 . Repair 1 | . . . . . . . . . . . . . 1 . Recycling Unit Hacks . | . . . . . . . . . . . . . . . Scanalyzer 4 | . . . . . . . . 2 . . . . 2 . Insert Component 3 | . . . . . . . . 2 . . . . 1 . Analyze 1 | . . . . . . . . . . . . . 1 . Garrison Access Hacks 10 | . . . . . . . 1 3 . . . . 3 3 Seal Access 10 | . . . . . . . 1 3 . . . . 3 3 Unauthorized Hacks 16 | . . . . . . . 2 5 . . . . 4 5 Terminals 16 | . . . . . . . 2 5 . . . . 4 5 Assimilate 10 | . . . . . . . 1 4 . . . . 2 3 Operators 6 | . . . . . . . 1 1 . . . . 2 2 Fabricators . | . . . . . . . . . . . . . . . Repair Stations . | . . . . . . . . . . . . . . . Recycling Units . | . . . . . . . . . . . . . . . Scanalyzers . | . . . . . . . . . . . . . . . Garrison Access . | . . . . . . . . . . . . . . . Data Cores Recovered 2 | . 1 . . . . . 1 . . . . . . . Used . | . . . . . . . . . . . . . . . Hacking Detections 60 | . 5 2 . . . 4 9 14 . . . . 15 11 Full Trace Events 2 | . . . . . . . . . . . . . . 2 Feedback Events . | . . . . . . . . . . . . . . . Feedback Blocked . | . . . . . . . . . . . . . . . Robot Schematics Acquired 5 | . . . . . . . . . . . 5 . . . Robots Built . | . . . . . . . . . . . . . . . Authchips . | . . . . . . . . . . . . . . . Time . | . . . . . . . . . . . . . . . Total Robot Build Rating . | . . . . . . . . . . . . . . . Part Schematics Acquired 17 | . 1 . . . . . 1 1 . . 9 . 2 3 Parts Built 3 | . . . . . . . . 2 . . . . . 1 Authchips . | . . . . . . . . . . . . . . . Time 491 | . . . . . . . . 117 . . . . . 374 Total Part Build Rating 21 | . . . . . . . . 14 . . . . . 7 Parts Repaired 1 | . . . . . . . . . . . . . 1 . Time 40 | . . . . . . . . . . . . . 40 . Parts Recycled . | . . . . . . . . . . . . . . . Recycled Matter . | . . . . . . . . . . . . . . . Retrieved Matter . | . . . . . . . . . . . . . . . Retrieved Components . | . . . . . . . . . . . . . . . Parts Scanalyzed 1 | . . . . . . . . . . . . . 1 . Part Schematics Acquired 1 | . . . . . . . . . . . . . 1 . Parts Damaged . | . . . . . . . . . . . . . . . Bothacking | -11 -10 -9 -9 -9 -8 -8 -7 -6 -6 -6 -6 -5 -5 -4 ------------ Run | Yrd Mat Mat Min Exi Min Mat Fac Fac Low Low Dat Pro Fac Fac Used RIF Installer . | . . . . . . . . . . . . . . . Robots Hacked . | . . . . . . . . . . . . . . . Non-combat . | . . . . . . . . . . . . . . . Combat . | . . . . . . . . . . . . . . . Robot Hacks Applied . | . . . . . . . . . . . . . . . Relay Couplers Released . | . . . . . . . . . . . . . . . Fabnet Peak Effective % . | . . . . . . . . . . . . . . . Robots Rewired . | . . . . . . . . . . . . . . . Allies Hacked . | . . . . . . . . . . . . . . . Hacks Repelled . | . . . . . . . . . . . . . . . Allies | -11 -10 -9 -9 -9 -8 -8 -7 -6 -6 -6 -6 -5 -5 -4 -------- Run | Yrd Mat Mat Min Exi Min Mat Fac Fac Low Low Dat Pro Fac Fac Total Allies 8 | . . . . . . . 1 2 . . . . 2 3 Largest Group 2 | . . . . . . . 1 2 . . . . 2 2 Highest-Rated Group 36 | . . . . . . . 26 36 . . . . 36 36 Highest-Rated Ally 26 | . . . . . . . 26 26 . . . . 26 26 Total Orders 29 | . . . . . . . . . 9 6 . 14 . . STAY 2 | . . . . . . . . . 2 . . . . . EXPLORE 15 | . . . . . . . . . 4 4 . 7 . . RETURN 12 | . . . . . . . . . 3 2 . 7 . . Ally Attacks . | . . . . . . . . . . . . . . . Total Damage . | . . . . . . . . . . . . . . . Kills . | . . . . . . . . . . . . . . . Allies Corrupted . | . . . . . . . . . . . . . . . Allies Melted . | . . . . . . . . . . . . . . . Intel | -11 -10 -9 -9 -9 -8 -8 -7 -6 -6 -6 -6 -5 -5 -4 ------- Run | Yrd Mat Mat Min Exi Min Mat Fac Fac Low Low Dat Pro Fac Fac Robot Analysis Total 3 | . . . . . . . . 3 . . . . . . Derelict Logs Recovered 6 | . . . 1 . . . . . 2 1 . 2 . . Drone Launches 14 | . . . . . . . . . 3 4 . 7 . . Drone Recoveries 12 | . . . . . . . . . 3 3 . 6 . . Exploration | -11 -10 -9 -9 -9 -8 -8 -7 -6 -6 -6 -6 -5 -5 -4 ------------- Run | Yrd Mat Mat Min Exi Min Mat Fac Fac Low Low Dat Pro Fac Fac Turns Passed 12892 | 74 1113 703 1553 356 275 737 985 1961 451 293 19 803 1575 1994 Spaces Moved 16278 | 40 882 302 837 222 129 318 2199 3350 424 383 75 1215 2750 3152 Core 2 | 2 . . . . . . . . . . . . . . Treads 1814 | 34 . 269 837 222 129 318 5 . . . . . . . Legs . | . . . . . . . . . . . . . . . Wheels 919 | 4 882 33 . . . . . . . . . . . . Hover . | . . . . . . . . . . . . . . . Flight 13543 | . . . . . . . 2194 3350 424 383 75 1215 2750 3152 Fastest Speed 23 | 50 95 95 160 160 160 160 26 23 23 23 23 23 23 27 Average Speed 44 | 148 98 152 160 160 160 160 26 23 23 23 23 23 25 27 Slowest Speed 160 | 160 100 160 160 160 160 160 160 24 23 23 23 23 28 28 Overloaded Moves . | . . . . . . . . . . . . . . . Propulsion Burnouts . | . . . . . . . . . . . . . . . Robots Hopped 23 | . . . . . . . 1 13 1 . . . 4 4 Cave-ins Triggered 1 | . . . . . . . . . . . . . 1 . Exploration Rate (%) 58 | 5 98 27 95 61 26 26 53 49 79 76 73 95 59 50 Regions Visited 14 Branch Regions 7 Pre-discovered Areas 2 | . . . . 1 . . . . . . 1 . . . Known Exits Taken 5 | . . . . . . 1 1 1 . . . 1 1 . Unknown Exits Taken 9 | 1 1 1 1 1 1 . . . 1 1 1 . . . Scrap Searched 10 | . . . 1 . . . . . 2 2 . 5 . . Spaces Dug 219 | . 4 . 13 . . 8 27 53 . 1 . 12 60 41 Terrain Destroyed 365 | . 4 . 48 . . 9 27 60 51 26 . 38 61 41 Melee 173 | . 4 . 2 . . 1 27 48 . 1 . 12 43 35 Projectile 32 | . . . . . . 8 . . . . . . 18 6 AOE 160 | . . . 46 . . . . 12 51 25 . 26 . . Terrain Rammed . | . . . . . . . . . . . . . . . Walls Destroyed . | . . . . . . . . . . . . . . . Machines Disabled . | . . . . . . . . . . . . . . . Actions | -11 -10 -9 -9 -9 -8 -8 -7 -6 -6 -6 -6 -5 -5 -4 --------- Run | Yrd Mat Mat Min Exi Min Mat Fac Fac Low Low Dat Pro Fac Fac Total 21114 | 51 1050 476 956 223 184 521 2490 4350 769 581 75 1711 3480 4197 Wait 4061 | . 80 95 18 2 48 170 190 876 331 192 . 478 593 988 Move 16218 | 39 881 301 836 221 128 317 2196 3324 421 382 74 1214 2740 3144 Hop 22 | . . . . . . . 1 12 1 . . . 4 4 Pick Up 63 | 6 12 9 2 . . 3 7 15 1 1 . . 6 1 Fast Attach 50 | 6 7 9 4 . . 4 5 . . . . . 12 3 Attach 22 | . . 1 4 . . 1 8 6 1 . . . 1 . Detach 10 | . 1 1 . . . 1 2 2 1 . . . 2 . Swap 63 | . 6 6 16 . . 3 1 11 5 3 1 4 6 1 Drop 94 | . 18 9 11 . . 7 15 16 3 . . . 14 1 Fire 146 | . 38 17 5 . . 11 . 2 5 2 . 3 49 14 Melee 364 | . 7 28 60 . 8 4 65 86 . 1 . 12 52 41 Ram . | . . . . . . . . . . . . . . . Kick . | . . . . . . . . . . . . . . . Crush . | . . . . . . . . . . . . . . . Escape Stasis 1 | . . . . . . . . . . . . . 1 . Rewire . | . . . . . . . . . . . . . . . Trap . | . . . . . . . . . . . . . . . Miscellaneous . | . . . . . . . . . . . . . . . Route ------- -11/Scrapyard -10/Materials (discovered 6 exits: *Mat x3 / *Min x2 / [*Sub]) -9/Materials -9/Mines (discovered 4 exits: *Mat x2 / *Exi / [*Zio]) -9/Exiles -8/Mines -8/Materials -7/Factory (discovered 6 exits: *Fac x2 / *Sto x2 / Low x2) -6/Factory (discovered 8 exits: *Fac x4 / *Low x2 / Ext x2) -6/Lower Caves -6/Lower Caves (discovered 2 exits: *Fac / *Dat) -6/Data Miner -5/Proximity Caves -5/Factory (discovered 6 exits: *Fac x4 / *Upp x2) -4/Factory (discovered 6 exits: *Res x4 / Upp x2) History --------- Turn | Location | Event 8 | -11/Scrapyard | Discovered new exit (range 16) 75 | -11/Scrapyard | Entered Materials 109 | -10/Materials | Discovered new exit (range 14) 248 | -10/Materials | Discovered new exit (range 15) 248 | -10/Materials | Discovered new exit (range 16) 335 | -10/Materials | Build established: Mutant 575 | -10/Materials | Derelicts attacked the area 584 | -10/Materials | Discovered new exit (range 8) 964 | -10/Materials | Discovered new exit (range 11) 1159 | -10/Materials | Identified exit to Mines 1178 | -10/Materials | Discovered new exit (range 5) 1188 | -10/Materials | Entered another Materials area 1188 | -9/Materials | Evolved 2 slots: Propulsion x1, Utility x1 1799 | -9/Materials | Discovered new exit (range 6) 1800 | -9/Materials | Core integrity fell below 50% 1891 | -9/Materials | Entered Mines 1950 | -9/Mines | Build established: Scavenger-Mutant 2009 | -9/Mines | Lost 5 parts (1p4n) 2143 | -9/Mines | A Derelict revealed a hidden shortcut to a safe place 2370 | -9/Mines | Found a hidden stash of uninstalled traps 2574 | -9/Mines | Discovered new exit (range 11) 2578 | -9/Mines | Learned Materials security intel 2746 | -9/Mines | Discovered new exit (range 12) 3240 | -9/Mines | Core integrity fell below 20% 3438 | -9/Mines | Deemed a non-threat by the Exiles lab entrance 3438 | -9/Mines | Discovered new exit (range 5) 3444 | -9/Mines | Entered Exiles 3484 | -9/Exiles | Met 8R-AWN 3508 | -9/Exiles | Met EX-HEX 3566 | -9/Exiles | Met EX-BIN 3585 | -9/Exiles | Aligned with FarCom system 3587 | -9/Exiles | Given EX-Vault access code 3624 | -9/Exiles | Opened EX-Vault 3645 | -9/Exiles | Build established: Scavenger-Gladiator 3680 | -9/Exiles | Warned to stay clear of 0b10 Research branches 3731 | -9/Exiles | Met EX-DEC 3738 | -9/Exiles | Learned location of Zion (-7) 3787 | -9/Exiles | Discovered new exit (range 10) 3800 | -9/Exiles | Entered Mines 4064 | -8/Mines | Discovered new exit (range 8) 4075 | -8/Mines | Entered Materials 4075 | -8/Materials | Evolved 2 slots: Propulsion x1, Utility x1 4687 | -8/Materials | Discovered new exit (range 15) 4711 | -8/Materials | Build established: Scavenger-Skirmisher 4809 | -8/Materials | Identified exit to Factory 4812 | -8/Materials | Entered Factory 4812 | -7/Factory | Evolved 2 slots: Utility x2 5042 | -7/Factory | Discovered new exit (range 9) 5096 | -7/Factory | Build established: Hacker-Scout 5104 | -7/Factory | Discovered new exit (range 9) 5123 | -7/Factory | Identified exit to Factory 5655 | -7/Factory | Identified exit to Storage 5655 | -7/Factory | Identified exit to Lower Caves 5751 | -7/Factory | Discovered exit to Factory (range 15) 5797 | -7/Factory | Entered another Factory area 5797 | -6/Factory | Evolved 2 slots: Power x1, Propulsion x1 5857 | -6/Factory | Build established: Hacker-Sprinter 5969 | -6/Factory | Fabricated Centrium Wheel? 6133 | -6/Factory | Identified exit to Lower Caves 6133 | -6/Factory | Identified exit to Extension 6290 | -6/Factory | Identified exit to Factory 7548 | -6/Factory | Build established: Hacker-Scout 7758 | -6/Factory | Entered Lower Caves 7884 | -6/Lower Caves | Learned 8 Factory zone layouts 7886 | -6/Lower Caves | Learned Factory terminal intel 7895 | -6/Lower Caves | Encountered a Warlord checkpoint 8063 | -6/Lower Caves | Build established: Hacker-Sprinter 8169 | -6/Lower Caves | Discovered new exit (range 49) 8209 | -6/Lower Caves | Entered another Lower Caves area 8236 | -6/Lower Caves | Discovered exit to Factory (range 22) 8489 | -6/Lower Caves | Discovered new exit (range 26) 8494 | -6/Lower Caves | Learned Factory terminal intel 8502 | -6/Lower Caves | Entered Data Miner 8504 | -6/Data Miner | Discovered new exit (range 6) 8507 | -6/Data Miner | Met Data Miner 8513 | -6/Data Miner | Learned location of Section 7 (-2) 8513 | -6/Data Miner | Acquired the access code to Warlord's prototype stash 8516 | -6/Data Miner | Received God Mode back door access code from Data Miner 8521 | -6/Data Miner | Entered Proximity Caves 8568 | -5/Proximity Caves | Learned Factory terminal intel 8578 | -5/Proximity Caves | Learned Factory terminal intel 8903 | -5/Proximity Caves | Received a Behemoth hack from an annoying Tinkerer 9311 | -5/Proximity Caves | Discovered exit to Factory (range 12) 9324 | -5/Proximity Caves | Entered Factory 9324 | -5/Factory | Evolved 2 slots: Propulsion x1, Utility x1 9326 | -5/Factory | Loaded intel: 26 terminal locations 9638 | -5/Factory | Discovered new exit (range 11) 9864 | -5/Factory | Identified exit to Upper Caves 9994 | -5/Factory | Repaired Cld. Cesium-ion Thruster 10217 | -5/Factory | Identified exit to Factory 10850 | -5/Factory | Crushed by falling debris 10851 | -5/Factory | System corruption reached 10% 10881 | -5/Factory | Lost 4 parts (4u) 10899 | -5/Factory | Entered another Factory area 10899 | -4/Factory | Evolved 2 slots: Propulsion x1, Utility x1 10900 | -4/Factory | Loaded intel: 26 terminal locations 11051 | -4/Factory | Discovered new exit (range 7) 11183 | -4/Factory | Build established: Wizard-Sprinter 11700 | -4/Factory | Identified exit to Research 11700 | -4/Factory | Identified exit to Upper Caves 12792 | -4/Factory | Fabricated Exp. Hacking Suite? 12880 | -4/Factory | Spotted B-86 Titan 12893 | -4/Factory | Self-destructed Last Messages --------------- 12880_ Connecting with Terminal... >>Trojan(Assimilate) Trojan loaded successfully. Testing... System interface override in place. >>Traps(Locate) Found 6 traps in 1 array: 6x Alarm Trap Map updated. 12885_ Connecting with Fabricator... >>Network(Status) Querying network status... 6 records found: (12,7) - Idle (189,152) - Loaded: Enh. Quantum Rifle (145,187) - Idle (10,33) - Idle (113,61) - Idle (86,147) - Connection failed 12891_ Connecting with Fabricator... Map ----- +----------------------------------------------------+ | | | | | | | | | | | | | | | | | | | | | | | | | | | | | | | | | | | ????????????????????????????????????? | | ????????????????????????????????????? | | ????#######?######################### | | ????# """T""" | | ????# ? | | ????# #?############## """ """ "%" % | | ????# #?# """" #?????# """ """ """ " | | ????# #?# ""F" #?????# """ """ "?" " | | ????# #?# ""@ #?????# """ """ """ " | | ????# #?# ####### | | ????# #?# o; """ """ """ " | | ????# #?# = # """ """ """ " | | ????# #####R#### """ """ """ " | | ????# #??#+### """ """ " | | ????####### #??????# | | ??????????# #??????# """ """ """ " | | ??????????# #??????# = """ ""???"" " | | ????????### #??????# """ ""???"" " | | ######### ; ######## """ ?"" """ " | | # """ """ # [== | | # """ """ # [== """?""" """ " | | # """ """ # [== [[ ""??""" """ " | | # + [ """ """ """ " | | # # """ """ """ " | | #! # | | # [ # """ """ | | # # """ """ ! | | ######+#### """ """ | | ?????# #??# ## | | ?????# #??# """ """ ########?? | | ?????# #??# """ """ #????????? | | ?????# #### """ """ #????????? | | ?????# ##"" #????????? | +----------------------------------------------------+ Best States ------------- Heat Dissipation 43 Energy Generation 33 Energy Capacity 450 Matter Stores 300 Matter Capacity 300 Sight Range 22 Robot Scan Range 15 Terrain Scan Density 10 Jamming Range 16 Cloak Strength 2 Additional Mass Support 9 Armor Coverage 225 Propulsion Shielding 33 Weapon Shielding 33 Evasion (%) 65 Melee Accuracy 5 Recoil Reduction 4 Offensive Hacking 36 Defensive Hacking 44 Item Schematics ----------------- Grenade Launcher | -10/Materials | Hacked Hacking Suite | -7/Factory | Hacked Cld. VTOL Module | -6/Factory | Hacked Combat Drone Bay | -6/Data Miner | Free Cld. Nuclear Pulse Thruster | -6/Data Miner | Free Imp. Component Analysis Suite | -6/Data Miner | Free Adv. Hardlight Generator | -6/Data Miner | Free Lgt. Regenerative Plating | -6/Data Miner | Free Imp. Energy Well | -6/Data Miner | Free Neutron Cannon | -6/Data Miner | Free Adv. Medium Treads | -6/Data Miner | Free Matter Neutralizer | -6/Data Miner | Free Q-thruster | -5/Factory | Hacked Enh. Optical Array | -5/Factory | Scanalyzed Adv. Hacking Suite | -4/Factory | Hacked Adv. Cloaking Device | -4/Factory | Hacked Exp. Hacking Suite | -4/Factory | Hacked Robot Schematics ------------------ A-15 Conveyor | -6/Data Miner | Free B-48 Gladiator | -6/Data Miner | Free S-27 Virus | -6/Data Miner | Free R-10 Processor | -6/Data Miner | Free G-67 Veteran | -6/Data Miner | Free Fabricated ------------ Centrium Wheel | x2 | -6/Factory | Preloaded Exp. Hacking Suite | x1 | -4/Factory Alien Tech Used ----------------- None Achievements -------------- None Challenges ------------ None Game ------ Seed TransdimensionalStormBeam Manual? 0 Play Time 04:31:03 Cumulative 95.1 hours Start 2024.04.14 @ 21:26:47 End 2024.04.17 @ 11:21:19 Sessions 11 Manual Loads 0 Difficulty Rogue Special Mode None Game No. 52 Rogue 51 Adventurer 1 Explorer 0 Win Type - Total 1 Types 1/0/0/0/0/0/0/0/0 Lore% 48 Gallery% 43 Achievement% 39 Wizard Run 0 Options --------- Layout 0 ASCII 1 Keyboard 1 Movement Numpad Keybinds 0 Fullscreen 1 Font 18/SmallcapsGlow Map View 76x50 Zoom Use 0% Tactical HUD 1 Map Filters NONE Filters NONE Steam 1 RUN: 69cdde69-e829-49e0-a69e-5ff915db83fa